fUSD/lending_fUSD_20241222
["ID","MTS","AMOUNT","RATE_DAILY","PERIOD"]
[346270742,1734855054519,-500.0,0.0001987,2]
[346270743,1734855054528,-589.86,0.0001987,2]
[346270744,1734855054537,-154.24976201,0.0001987,2]
[346270745,1734855054547,-500.0,0.0001987,2]
[346270746,1734855054556,-500.0,0.0001987,2]
[346270747,1734855054565,-503.25,0.0001987,2]
[346270748,1734855054574,-500.0,0.0001987,2]
[346270749,1734855054583,-500.0,0.0001987,2]
[346270750,1734855054592,-500.0,0.0001987,2]
[346270751,1734855054601,-500.0,0.0001987,2]
[346270752,1734855054611,-509.63,0.0001987,2]
[346270753,1734855054620,-518.33,0.0001987,2]
[346270754,1734855054629,-518.7,0.0001987,2]
[346270755,1734855054638,-500.0,0.0001987,2]
[346270756,1734855054647,-500.0,0.0001987,2]
[346270757,1734855054656,-435.74203646,0.0001987,2]
[346270758,1734855054666,-500.0,0.0001987,2]
[346270759,1734855054674,-503.62,0.0001987,2]
[346270760,1734855054683,-627.29,0.0001987,2]
[346270761,1734855054693,-500.0,0.0001987,2]
[346270762,1734855054703,-500.0,0.0001987,2]
[346270763,1734855054712,-528.08,0.0001987,2]
[346270764,1734855054722,-500.0,0.0001987,2]
[346270765,1734855054731,-500.0,0.0001987,2]
[346270766,1734855054740,-221.89630623,0.0001987,2]
[346270767,1734855054749,-500.0,0.0001987,2]
[346270768,1734855054758,-500.0,0.0001987,2]
[346270769,1734855054769,-500.0,0.0001987,2]
[346270770,1734855054778,-969.41,0.0001987,2]
[346270771,1734855054788,-500.0,0.0001987,2]
[346270772,1734855054797,-1408.1,0.0001987,2]
[346270773,1734855054806,-500.0,0.0001987,2]
[346270774,1734855054815,-564.34639497,0.0001987,2]
[346270775,1734855054825,-500.0,0.0001987,2]
[346270776,1734855054834,-500.0,0.0001987,2]
[346270777,1734855054843,-500.0,0.0001987,2]
[346270778,1734855054852,-500.0,0.0001987,2]
[346270779,1734855054861,-500.0,0.0001987,2]
[346270780,1734855054870,-500.0,0.0001987,2]
[346270781,1734855054879,-500.0,0.0001987,2]
[346270782,1734855054888,-500.0,0.0001987,2]
[346270783,1734855054897,-500.0,0.0001987,2]
[346270784,1734855054906,-500.0,0.0001987,2]
[346270785,1734855054915,-500.0,0.0001987,2]
[346270786,1734855054924,-500.0,0.0001987,2]
[346270787,1734855054933,-500.0,0.0001987,2]
[346270788,1734855054943,-500.0,0.0001987,2]
[346270789,1734855054952,-500.0,0.0001987,2]
[346270790,1734855054961,-500.0,0.0001987,2]
[346270791,1734855054970,-500.0,0.0001987,2]
[346270792,1734855054980,-500.0,0.0001987,2]
[346270793,1734855054989,-500.0,0.0001987,2]
[346270794,1734855054998,-500.0,0.0001987,2]
[346270795,1734855055007,-500.0,0.0001987,2]
[346270796,1734855055018,-500.0,0.0001987,2]
[346270797,1734855055027,-500.0,0.0001987,2]
[346270798,1734855055037,-500.0,0.0001987,2]
[346270799,1734855055047,-990.52,0.0001987,2]
[346270800,1734855055056,-500.0,0.0001987,2]
[346270801,1734855055065,-682.16,0.0001987,2]
[346270802,1734855055075,-500.0,0.00019871,2]
[346270803,1734855055084,-500.0,0.00019871,2]
[346270804,1734855055094,-500.0,0.00019871,2]
[346270805,1734855055103,-500.0,0.00019871,2]
[346270806,1734855055113,-598.63,0.00019871,2]
[346270807,1734855055122,-435.91832901,0.00019871,2]
[346270808,1734855055132,-500.0,0.00019871,2]
[346270809,1734855055142,-279.65374617,0.00019871,2]
[346270810,1734855055151,-500.0,0.00019871,2]
[346270811,1734855055160,-500.0,0.00019871,2]
[346270812,1734855055170,-500.0,0.00019871,2]
[346270813,1734855055179,-500.0,0.00019871,2]
[346270814,1734855055188,-500.0,0.00019871,2]
[346270815,1734855055198,-500.0,0.00019871,2]
[346270816,1734855055207,-500.0,0.00019871,2]
[346270817,1734855055216,-500.0,0.00019871,2]
[346270818,1734855055226,-500.0,0.00019871,2]
[346270819,1734855055236,-500.0,0.00019871,2]
[346270820,1734855055247,-500.0,0.00019871,2]
[346270821,1734855055256,-500.0,0.00019871,2]
[346270822,1734855055267,-504.64881329,0.00019871,2]
[346270823,1734855055276,-500.0,0.00019871,2]
[346270824,1734855055287,-500.0,0.00019871,2]
[346270825,1734855055296,-500.0,0.00019871,2]
[346270826,1734855055304,-500.0,0.00019871,2]
[346270827,1734855055313,-500.0,0.00019871,2]
[346270828,1734855055324,-500.0,0.00019871,2]
[346270829,1734855055333,-500.0,0.00019871,2]
[346270830,1734855055342,-507.47329175,0.00019871,2]
[346270831,1734855055352,-500.0,0.00019871,2]
[346270832,1734855055361,-500.0,0.00019871,2]
[346270833,1734855055370,-500.0,0.00019871,2]
[346270834,1734855055379,-504.12610799,0.00019871,2]
[346270835,1734855055388,-500.0,0.00019871,2]
[346270836,1734855055398,-500.0,0.00019871,2]
[346270837,1734855055407,-500.0,0.00019871,2]
[346270838,1734855055416,-500.0,0.00019871,2]
[346270839,1734855055425,-500.0,0.00019871,2]
[346270840,1734855055434,-500.0,0.00019871,2]
[346270841,1734855055444,-305.0,0.00019871,2]
[346270842,1734855055453,-500.0,0.00019871,2]
[346270843,1734855055462,-500.0,0.00019871,2]
[346270844,1734855055471,-500.0,0.00019871,2]
[346270845,1734855055481,-500.0,0.00019871,2]
[346270846,1734855055490,-500.0,0.00019871,2]
[346270847,1734855055500,-508.10066544,0.00019871,2]
[346270848,1734855055509,-500.0,0.00019871,2]
[346270849,1734855055519,-500.0,0.00019871,2]
[346270850,1734855055529,-500.0,0.00019871,2]
[346270851,1734855055538,-346.81127589,0.00019871,2]
[346270852,1734855055547,-500.0,0.00019871,2]
[346270853,1734855055557,-502.75919885,0.00019871,2]
[346270854,1734855055566,-500.0,0.00019871,2]
[346270855,1734855055575,-500.0,0.00019871,2]
[346270856,1734855055584,-500.0,0.00019871,2]
[346270857,1734855055593,-500.0,0.00019871,2]
[346270858,1734855055602,-500.0,0.00019871,2]
[346270859,1734855055612,-500.0,0.00019871,2]
[346270860,1734855055621,-500.0,0.00019871,2]
[346270861,1734855055630,-500.0,0.00019871,2]
[346270862,1734855055639,-500.0,0.00019871,2]
[346270863,1734855055649,-503.76368822,0.00019871,2]
[346270864,1734855055658,-500.0,0.00019871,2]
[346270865,1734855055667,-500.0,0.00019871,2]
[346270866,1734855055677,-511.58223437,0.00019871,2]
[346270867,1734855055686,-500.0,0.00019871,2]
[346270868,1734855055695,-500.0,0.00019871,2]
[346270869,1734855055705,-505.68318955,0.00019871,2]
[346270870,1734855055714,-500.0,0.00019871,2]
[346270871,1734855055723,-500.0,0.00019871,2]
[346270872,1734855055732,-506.56998189,0.00019871,2]
[346270873,1734855055741,-500.0,0.00019871,2]
[346270874,1734855055750,-500.0,0.00019871,2]
[346270875,1734855055760,-500.0,0.00019871,2]
[346270876,1734855055772,-578.4539636,0.00019871,2]
[346270877,1734855055781,-500.0,0.00019871,2]
[346270878,1734855055791,-500.0,0.00019871,2]
[346270879,1734855055800,-500.0,0.00019871,2]
[346270880,1734855055809,-500.0,0.00019871,2]
[346270881,1734855055818,-500.0,0.00019871,2]
[346270882,1734855055827,-500.0,0.00019871,2]
[346270883,1734855055836,-500.0,0.00019871,2]
[346270884,1734855055845,-500.0,0.00019871,2]
[346270885,1734855055854,-500.0,0.00019871,2]
[346270886,1734855055863,-503.61712962,0.00019871,2]
[346270887,1734855055872,-500.0,0.00019871,2]
[346270888,1734855055881,-501.52508019,0.00019871,2]
[346270889,1734855055890,-500.0,0.00019871,2]
[346270890,1734855055899,-500.0,0.00019871,2]
[346270891,1734855055908,-512.85734791,0.00019871,2]
[346270892,1734855055917,-500.0,0.00019871,2]
[346270893,1734855055926,-500.0,0.00019871,2]
[346270894,1734855055935,-500.0,0.00019871,2]
[346270895,1734855055945,-500.0,0.00019871,2]
[346270896,1734855055955,-500.0,0.00019871,2]
[346270897,1734855055964,-501.45492029,0.00019871,2]
[346270898,1734855055973,-500.0,0.00019871,2]
[346270899,1734855055983,-504.50492921,0.00019871,2]
[346270900,1734855055992,-500.0,0.00019871,2]
[346270901,1734855056000,-500.0,0.00019871,2]
[346270902,1734855056010,-500.0,0.00019871,2]
[346270903,1734855056019,-500.0,0.00019871,2]
[346270904,1734855056028,-500.0,0.00019871,2]
[346270905,1734855056037,-623.06,0.00019871,2]
[346270906,1734855056046,-500.0,0.00019871,2]
[346270907,1734855056055,-500.0,0.00019871,2]
[346270908,1734855056063,-500.0,0.00019871,2]
[346270909,1734855056072,-500.0,0.00019871,2]
[346270910,1734855056081,-500.0,0.00019871,2]
[346270911,1734855056091,-500.0,0.00019871,2]
[346270912,1734855056101,-500.0,0.00019871,2]
[346270913,1734855056110,-500.0,0.00019871,2]
[346270914,1734855056119,-500.0,0.00019871,2]
[346270915,1734855056129,-500.0,0.00019871,2]
[346270916,1734855056138,-500.0,0.00019871,2]
[346270917,1734855056147,-500.0,0.00019871,2]
[346270918,1734855056156,-500.0,0.00019871,2]
[346270919,1734855056165,-500.0,0.00019871,2]
[346270920,1734855056174,-500.0,0.00019871,2]
[346270921,1734855056185,-568.29915338,0.00019871,2]
[346270922,1734855056194,-500.0,0.00019871,2]
[346270923,1734855056203,-500.0,0.00019871,2]
[346270924,1734855056212,-267.45698375,0.00019871,2]
[346270925,1734855056220,-500.0,0.00019871,2]
[346270926,1734855056230,-500.0,0.00019871,2]
[346270927,1734855056242,-500.0,0.00019871,2]
[346270928,1734855056251,-500.0,0.00019871,2]
[346270929,1734855056260,-312.29,0.00019871,2]
[346270930,1734855056270,-500.0,0.00019871,2]
[346270931,1734855056280,-798.18,0.00019871,2]
[346270932,1734855056289,-500.0,0.00019871,2]
[346270933,1734855056299,-4015.83,0.00019871,2]
[346270934,1734855056309,-1330.15,0.00019871,2]
[346270935,1734855056318,-771.090061,0.00019871,2]
[346270936,1734855056327,-1208.458432,0.00019871,2]
[346270937,1734855056336,-500.0,0.00019871,2]
[346270938,1734855056345,-532.45,0.00019871,2]
[346270939,1734855056354,-958.8,0.00019871,2]
[346270940,1734855056364,-4371.29,0.00019871,2]
[346270941,1734855056373,-500.0,0.00019871,2]
[346270942,1734855056382,-859.75,0.00019871,2]
[346270943,1734855056392,-753.86,0.00019871,2]
[346270944,1734855056401,-602.09340289,0.00019871,2]
[346270945,1734855056410,-1455.36,0.00019871,2]
[346270946,1734855056419,-742.2,0.00019871,2]
[346270947,1734855056429,-1696.02,0.00019871,2]
[346270948,1734855056438,-3404.55,0.00019871,2]
[346270949,1734855056448,-1018.48,0.00019871,2]
[346270950,1734855056457,-998.42,0.00019871,2]
[346270951,1734855056466,-3373.62,0.00019871,2]
[346270952,1734855056476,-3080.5,0.00019871,2]
[346270953,1734855056485,-3333.49,0.00019871,2]
[346270954,1734855056495,-669.58,0.00019871,2]
[346270955,1734855056504,-500.0,0.00019871,2]
[346270956,1734855056514,-500.0,0.00019871,2]
[346270957,1734855056523,-10174.0,0.00019871,2]
[346270958,1734855056533,-500.0,0.00019871,2]
[346270959,1734855056542,-2311.35,0.00019871,2]
[346270960,1734855056551,-150.0,0.00019873,2]
[346270961,1734855056560,-150.0,0.00019873,2]
[346270962,1734855056569,-150.0,0.00019875,2]
[346270963,1734855056578,-689.79606711,0.00019876,2]
[346270964,1734855056587,-150.0,0.00019877,2]
[346270965,1734855056596,-150.0,0.00019879,2]
[346270966,1734855056606,-150.0,0.0001988,2]
[346270967,1734855056615,-150.0,0.00019883,2]
[346270968,1734855056623,-150.0,0.00019883,2]
[346270969,1734855056632,-150.0,0.00019884,2]
[346270970,1734855056641,-150.0,0.00019887,2]
[346270971,1734855056650,-150.0,0.0001989,2]
[346270972,1734855056659,-150.0,0.0001989,2]
[346270973,1734855056668,-800.0,0.0001989,2]
[346270974,1734855056677,-1925.60107403,0.000199,2]
[346270975,1734855056686,-2868.3608,0.000199,2]
[346270976,1734855056695,-1448.21222678,0.000199,2]
[346270977,1734855056704,-2983.81,0.000199,2]
[346270978,1734855056713,-5800.0,0.000199,2]
[346270979,1734855056722,-166.95378809,0.000199,2]
[346270980,1734855056731,-174.14235606,0.000199,2]
[346270981,1734855056740,-174.14235606,0.000199,2]
[346270982,1734855056750,-174.14235606,0.000199,2]
[346270983,1734855056759,-174.14235606,0.000199,2]
[346270984,1734855056769,-174.14235606,0.000199,2]
[346270985,1734855056778,-174.14235606,0.000199,2]
[346270986,1734855056787,-174.14235606,0.000199,2]
[346270987,1734855056796,-174.14235606,0.000199,2]
[346270988,1734855056806,-174.14235606,0.000199,2]
[346270989,1734855056945,-174.14235606,0.000199,2]
[346270990,1734855056954,-174.14235606,0.000199,2]
[346270991,1734855056963,-174.14235606,0.000199,2]
[346270992,1734855056972,-174.14235606,0.000199,2]
[346270993,1734855056980,-174.14235606,0.000199,2]
[346270994,1734855056989,-174.14235606,0.000199,2]
[346270995,1734855056998,-174.14235606,0.000199,2]
[346270996,1734855057007,-174.14235606,0.000199,2]
[346270997,1734855057017,-174.14235606,0.000199,2]
[346270998,1734855057025,-174.14235606,0.000199,2]
[346270999,1734855057034,-174.14,0.000199,2]
[346271000,1734855057043,-261.21353409,0.000199,2]
[346271001,1734855057052,-261.21353409,0.000199,2]
[346271002,1734855057061,-261.21353409,0.000199,2]
[346271003,1734855057070,-261.21353409,0.000199,2]
[346271004,1734855057078,-261.21353409,0.000199,2]
[346271005,1734855057087,-261.21353409,0.000199,2]
[346271006,1734855057096,-261.21353409,0.000199,2]
[346271007,1734855057106,-261.21353409,0.000199,2]
[346271008,1734855057115,-261.21353409,0.000199,2]
[346271009,1734855057125,-261.21353409,0.000199,2]
[346271010,1734855057134,-261.21353409,0.000199,2]
[346271011,1734855057143,-261.21353409,0.000199,2]
[346271012,1734855057152,-261.21353409,0.000199,2]
[346271013,1734855057161,-261.21353409,0.000199,2]
[346271014,1734855057170,-261.21353409,0.000199,2]
[346271015,1734855057179,-261.21353409,0.000199,2]
[346271016,1734855057188,-261.21353409,0.000199,2]
[346271017,1734855057197,-261.21353409,0.000199,2]
[346271018,1734855057206,-261.21353409,0.000199,2]
[346271019,1734855057215,-261.21,0.000199,2]
[346271020,1734855057225,-3298.78073918,0.000199,2]
[346271021,1734855057234,-188.93317513,0.000199,2]
[346271022,1734855057245,-1088.76300673,0.000199,2]
[346271023,1734855057254,-27833.87797781,0.000199,2]
[346271024,1734855057264,-1583.0,0.000199,2]
[346271025,1734855057274,-150.0,0.00019903,2]
[346271026,1734855057283,-150.0,0.00019904,2]
[346271027,1734855057292,-150.0,0.00019907,2]
[346271028,1734855057302,-150.0,0.00019915,2]
[346271029,1734855057313,-150.0,0.00019921,2]
[346271030,1734855057323,-150.0,0.00019922,2]
[346271031,1734855057332,-150.0,0.00019923,2]
[346271032,1734855057341,-150.0,0.00019923,2]
[346271033,1734855057350,-170.0,0.00019927,2]
[346271034,1734855057360,-171.81,0.00019927,2]
[346271035,1734855057368,-152.0,0.00019927,2]
[346271036,1734855057378,-152.0,0.00019927,2]
[346271037,1734855057387,-152.0,0.00019927,2]
[346271038,1734855057397,-152.0,0.00019927,2]
[346271039,1734855057406,-152.0,0.00019927,2]
[346271040,1734855057415,-152.0,0.00019927,2]
[346271041,1734855057424,-152.0,0.00019927,2]
[346271042,1734855057433,-152.0,0.00019927,2]
[346271043,1734855057442,-152.0,0.00019927,2]
[346271044,1734855057451,-295.67,0.00019927,2]
[346271045,1734855057461,-150.0,0.00019936,2]
[346271046,1734855057471,-150.0,0.00019937,2]
[346271047,1734855057480,-150.0,0.00019939,2]
[346271048,1734855057489,-150.0,0.00019945,2]
[346271049,1734855057499,-150.0,0.00019946,2]
[346271050,1734855057508,-150.0,0.0001995,2]
[346271051,1734855057518,-150.0,0.00019955,2]
[346271052,1734855057527,-511.90851351,0.00019959,2]
[346271053,1734855057536,-150.0,0.00019959,2]
[346271054,1734855057546,-150.0,0.0001996,2]
[346271055,1734855057555,-150.0,0.00019965,2]
[346271056,1734855057565,-151.50687945,0.00019973,2]
[346271057,1734855057574,-501.74623468,0.00019973,2]
[346271058,1734855057584,-500.0,0.00019973,2]
[346271059,1734855057593,-500.0,0.00019973,2]
[346271060,1734855057602,-501.80926741,0.00019973,2]
[346271061,1734855057611,-166.22439773,0.00019973,2]
[346271062,1734855057621,-511.13889382,0.00019973,2]
[346271063,1734855057631,-26257.0,0.00019973,2]
[346271064,1734855057640,-150.0,0.00019976,2]
[346271065,1734855057649,-150.0,0.00019977,2]
[346271066,1734855057658,-150.0,0.00019983,2]
[346271067,1734855057667,-150.0,0.00019984,2]
[346271068,1734855057676,-150.0,0.00019988,2]
[346271069,1734855057685,-150.0,0.00019989,2]
[346271070,1734855057694,-150.0,0.0001999,2]
[346271071,1734855057703,-281464.05707525,0.00019995,2]
[346271072,1734855057713,-500.0,0.00019995,2]
[346271073,1734855057722,-500.0,0.00019995,2]
[346271074,1734855057731,-1511.62,0.00019995,2]
[346271075,1734855057740,-500.0,0.00019995,2]
[346271076,1734855057749,-500.0,0.00019995,2]
[346271077,1734855057758,-500.0,0.00019995,2]
[346271078,1734855057770,-781.42,0.00019995,2]
[346271079,1734855057779,-500.0,0.00019995,2]
[346271080,1734855057788,-500.0,0.00019995,2]
[346271081,1734855057797,-500.0,0.00019995,2]
[346271082,1734855057806,-500.0,0.00019995,2]
[346271083,1734855057815,-587.7,0.00019995,2]
[346271084,1734855057825,-647.8,0.00019995,2]
[346271085,1734855057834,-40000.0,0.00019999,2]
[346271086,1734855057843,-151.25718564,0.00019999,2]
[346271087,1734855057853,-479.57265574,0.00019999,5]
[346271088,1734855057862,-1000.0,0.00019999,2]
[346271089,1734855057871,-1000.0,0.00019999,2]
[346271090,1734855057880,-1000.0,0.00019999,2]
[346271091,1734855057889,-1000.0,0.00019999,2]
[346271092,1734855057898,-1000.0,0.00019999,2]
[346271093,1734855057907,-1000.0,0.00019999,2]
[346271094,1734855057916,-1000.0,0.00019999,2]
[346271095,1734855057926,-1000.0,0.00019999,2]
[346271096,1734855057935,-1000.0,0.00019999,2]
[346271097,1734855057944,-1000.0,0.00019999,2]
[346271098,1734855057954,-1000.0,0.00019999,2]
[346271099,1734855057963,-1000.0,0.00019999,2]
[346271100,1734855057972,-1000.0,0.00019999,2]
[346271101,1734855057982,-1000.0,0.00019999,2]
[346271102,1734855057991,-1000.0,0.00019999,2]
[346271103,1734855058000,-1000.0,0.00019999,2]
[346271104,1734855058009,-1000.0,0.00019999,2]
[346271105,1734855058019,-1000.0,0.00019999,2]
[346271106,1734855058028,-1000.0,0.00019999,2]
[346271107,1734855058037,-1000.0,0.00019999,2]
[346271108,1734855058046,-1000.0,0.00019999,2]
[346271109,1734855058056,-1000.0,0.00019999,2]
[346271110,1734855058065,-560.25868215,0.00019999,2]
[346271111,1734855058074,-500.0,0.00019999,2]
[346271112,1734855058083,-4844.8520517,0.00019999,7]
[346271113,1734855058092,-893585.25861411,0.0002,3]
[346271114,1734855058102,-1566.04238828,0.0002,2]
[346271115,1734855058111,-8120.26132922,0.0002,3]
[346271116,1734855058120,-18755349.27984891,0.0002,2]
[346271117,1734855058401,-9315.63957483,0.0002,2]
[346271118,1734855058451,-29728.50514211,0.0002,2]
[346271119,1734855058866,-200.0,0.00018091,2]
[346271120,1734855058876,-1101.0,0.00018548,2]
[346271121,1734855058885,-32321.01261972,0.0002,2]
[346271122,1734855058958,-1923.54,0.0002,2]
[346271123,1734855058974,-4052.43775077,0.0002,2]
[346271124,1734855058985,-947.03959136,0.0002,2]
[346271125,1734855058997,-4872.49873743,0.0002,2]
[346271126,1734855059558,-494.24,0.00019178,2]
[346271127,1734855059569,-232.65082759,0.00019595,2]
[346271128,1734855059579,-364.42600604,0.00019621,2]
[346271129,1734855059588,-3379.66244447,0.0002,2]
[346271130,1734855059601,-919.97299999,0.0002,2]
[346271131,1734855059612,-4434.57264577,0.0002,2]
[346271132,1734855059655,-184110.00003,0.0002,2]
[346271133,1734855060154,-1012.76196331,0.00018067,2]
[346271134,1734855060164,-280.3904,0.00019178,2]
[346271135,1734855060173,-500.0,0.00019595,2]
[346271136,1734855060183,-163.182,0.00019857,2]
[346271137,1734855060192,-114042.59265561,0.0002,2]
[346271138,1734855060234,-1409718.21844843,0.0002,2]
[346271139,1734855184305,450.0,0.00013,2]
[346271140,1734855897370,167.64,0.00010137,2]
[346271141,1734855907758,98453.3,0.00013,2]
[346271142,1734855907794,5044119.33635156,0.00013,2]
[346271143,1734855919154,1064.47956674,9e-05,2]
[346271144,1734855928866,150517.61671177,9e-05,2]
[346271145,1734855935564,28000.0,8e-05,2]
[346271146,1734855953551,4604.96735545,6.94e-05,2]
[346271147,1734855961310,17070.91616973,9.8e-05,2]
[346271148,1734855965469,11032.29287194,7e-05,2]
[346271149,1734856035203,205.0,9.8e-05,2]
[346271150,1734856039723,248.06588484,0.000101,2]
[346271165,1734856232364,-454.399991,0.000128,2]
[346271166,1734856232375,-300.0,0.00012899,2]
[346271167,1734856232384,-166.95378811,0.000129,2]
[346271168,1734856232395,-287.9718038,0.000129,2]
[346271169,1734856232405,-99722.46955656,0.000129,2]
[346271170,1734856232416,-19600.89097674,0.000129,2]
[346271171,1734856232428,-6350.19983924,0.000129,2]
[346271172,1734856232440,-14591.19813767,0.000129,2]
[346271173,1734856232526,-1273.05622712,0.000129,2]
[346271174,1734856232537,-515.24829337,0.000129,2]
[346271175,1734856232550,-547.91945619,0.000129,2]
[346271176,1734856232581,-65285.38346793,0.000129,2]
[346271177,1734856232941,-64825.07178069,0.000129,2]
[346271178,1734856232951,-449.19816251,0.000129,2]
[346271179,1734856232961,-1099.59357974,0.000129,2]
[346271180,1734856232970,-166.22439773,0.00012973,2]
[346271181,1734856232982,-511.13889382,0.00012973,2]
[346271183,1734856232991,-151.50687945,0.00012973,2]
[346271185,1734856233001,-500.0,0.00012973,2]
[346271187,1734856233010,-500.0,0.00012973,2]
[346271188,1734856233019,-500.0,0.00012973,2]
[346271189,1734856233028,-157.59283735,0.0001299,2]
[346271190,1734856233038,-500.0,0.00012999,2]
[346271191,1734856233047,-514.28629827,0.00012999,2]
[346271192,1734856233057,-157.99933996,0.00012999,2]
[346271193,1734856233067,-500.0,0.00012999,2]
[346271194,1734856233077,-439.34574576,0.00012999,2]
[346271195,1734856233087,-500.0,0.00012999,2]
[346271196,1734856233096,-500.0,0.00012999,2]
[346271197,1734856233106,-189.73067647,0.00012999,2]
[346271198,1734856233115,-87564.69075988,0.00013,2]
[346271199,1734856233127,-25213.74559319,0.00013,2]
[346271200,1734856233139,-4832.14990432,0.00013,2]
[346271201,1734856233155,-2096.14913858,0.00013,2]
[346271204,1734856238269,-521.4921428,0.000129,2]
[346271205,1734856238430,-207.3598693,0.000129,2]
[346271206,1734856238440,-5323309.63332557,0.00013,2]
[346271207,1734856238450,-1009551.55877288,0.00013,2]
[346271208,1734856238459,-143555.64406865,0.00013399,2]
[346271209,1734856238468,-501.74623468,0.00013521,2]
[346271210,1734856238478,-1000.0,0.00013521,2]
[346271211,1734856238489,-373.92977194,0.00013521,2]
[346271212,1734856238498,-208.34,0.00013699,2]
[346271213,1734856238508,-420.0,0.00014147,2]
[346271214,1734856238517,-1500.0,0.00014522,2]
[346271215,1734856238527,-500.0,0.00015,2]
[346271216,1734856238537,-8238.37148829,0.00015,10]
[346271217,1734856238546,-1248.28,0.00015304,2]
[346271218,1734856238556,-504.93318235,0.0001582,2]
[346271219,1734856238565,-166.95378809,0.00016391,2]
[346271220,1734856238574,-449.19816251,0.000164,2]
[346271221,1734856238584,-1099.59357972,0.000164,2]
[346271222,1734856238592,-11298.82,0.00016532,2]
[346271223,1734856238601,-2882.56,0.00016549,2]
[346271224,1734856238611,-200.0,0.0001655,2]
[346271225,1734856238620,-677.25,0.00016555,2]
[346271226,1734856238629,-600.0,0.00016568,2]
[346271227,1734856238638,-550.0,0.00017,2]
[346271228,1734856238647,-500.0,0.00017009,2]
[346271229,1734856238656,-500.0,0.00017234,2]
[346271230,1734856238665,-1248.28,0.00017567,2]
[346271231,1734856238675,-500.0,0.00017664,2]
[346271232,1734856238684,-500.0,0.00017664,2]
[346271233,1734856238693,-600.0,0.00017664,2]
[346271235,1734856238702,-712.05,0.00017667,2]
[346271236,1734856238711,-250.0,0.0001779,2]
[346271239,1734856238721,-163.58,0.000179,2]
[346271240,1734856238730,-163.58,0.000179,2]
[346271241,1734856238740,-163.58,0.000179,2]
[346271242,1734856238749,-163.58,0.000179,2]
[346271243,1734856238761,-163.58,0.000179,2]
[346271244,1734856238771,-163.58,0.000179,2]
[346271245,1734856238780,-23900.0,0.00017905,2]
[346271246,1734856238789,-150.0,0.00017975,2]
[346271247,1734856238799,-150.0,0.00017975,2]
[346271248,1734856238809,-150.0,0.00017975,2]
[346271249,1734856238818,-1437.07,0.00018013,2]
[346271250,1734856238827,-494.42,0.00018039,2]
[346271252,1734856238837,-250.0,0.00018097,2]
[346271254,1734856238846,-1000.0,0.00018191,2]
[346271256,1734856238855,-250.0,0.00018201,2]
[346271258,1734856238865,-730.3,0.0001829,2]
[346271260,1734856238874,-182.54,0.00018316,30]
[346271262,1734856238883,-150.0,0.00018355,2]
[346271264,1734856238892,-151.53550779,0.00018585,2]
[346271266,1734856238902,-600.0,0.0001876,2]
[346271268,1734856238911,-1711.13038279,0.000188,2]
[346271270,1734856238920,-422.27229813,0.00018899,2]
[346271271,1734856238929,-4062.0,0.000189,2]
[346271272,1734856238938,-436.35653292,0.000189,2]
[346271273,1734856238948,-7038.02990701,0.000189,2]